[Event "The Kvibergspelen 2024"]
[Site "Kviberg Park Hotel & Conference, Krutvagen 2, Gothenburg, Sweden"]
[Date "2024.09.06"]
[Round "3.11"]
[White "Sjoholm, Emil"]
[Black "Marandi, Nader"]
[Result "1-0"]
[TimeControl "15 minutes + 5 seconds per move from move one (Round 1 - 4) / 90 minutes + 30 seconds per move from move one (Round 5 - 8)"]
[WhiteFideId "1720449"]
[BlackFideId "12536490"]
[WhiteElo "2092"]
[BlackElo "1722"]

1. e4 {[%clk 00:15:07]} {[%emt 00:00:03]} e5 {[%clk 00:15:09]} {[%emt
00:00:01]} 2. Bc4 {[%clk 00:15:10]} {[%emt 00:00:02]} Nc6 {[%clk 00:15:07]}
{[%emt 00:00:07]} 3. Nf3 {[%clk 00:15:10]} {[%emt 00:00:06]} Bc5 {[%clk
00:15:04]} {[%emt 00:00:07]} 4. d3 {[%clk 00:14:58]} {[%emt 00:00:17]} h6
{[%clk 00:14:55]} {[%emt 00:00:14]} 5. c3 {[%clk 00:15:00]} {[%emt 00:00:03]}
d6 {[%clk 00:14:46]} {[%emt 00:00:14]} 6. a4 {[%clk 00:15:03]} {[%emt
00:00:02]} a5 {[%clk 00:14:27]} {[%emt 00:00:23]} 7. Nbd2 {[%clk 00:14:45]}
{[%emt 00:00:23]} Nf6 {[%clk 00:14:26]} {[%emt 00:00:08]} 8. Nf1 {[%clk
00:14:16]} {[%emt 00:00:32]} O-O {[%clk 00:13:42]} {[%emt 00:00:49]} 9. Be3
{[%clk 00:14:11]} {[%emt 00:00:10]} Ba7 {[%clk 00:13:22]} {[%emt 00:00:26]} 10.
Qd2 {[%clk 00:14:02]} {[%emt 00:00:14]} d5 {[%clk 00:13:01]} {[%emt 00:00:26]}
11. exd5 {[%clk 00:13:51]} {[%emt 00:00:17]} Nxd5 {[%clk 00:13:02]} {[%emt
00:00:03]} 12. Bxh6 {[%clk 00:12:53]} {[%emt 00:01:03]} gxh6 {[%clk 00:13:05]}
{[%emt 00:00:02]} 13. Qxh6 {[%clk 00:12:56]} {[%emt 00:00:02]} Qf6 {[%clk
00:13:07]} {[%emt 00:00:03]} 14. Qd2 {[%clk 00:10:33]} {[%emt 00:02:27]} Be6
{[%clk 00:12:09]} {[%emt 00:01:04]} 15. Ng3 {[%clk 00:10:22]} {[%emt 00:00:16]}
Nf4 {[%clk 00:11:10]} {[%emt 00:01:04]} 16. Ne4 {[%clk 00:08:58]} {[%emt
00:01:29]} Qg7 {[%clk 00:08:20]} {[%emt 00:02:55]} 17. Bxe6 {[%clk 00:07:13]}
{[%emt 00:01:50]} Nxe6 {[%clk 00:08:00]} {[%emt 00:00:25]} 18. O-O-O {[%clk
00:06:59]} {[%emt 00:00:17]} Rfd8 {[%clk 00:07:18]} {[%emt 00:00:48]} 19. Qc2
{[%clk 00:06:14]} {[%emt 00:00:50]} Nf4 {[%clk 00:05:29]} {[%emt 00:01:55]} 20.
g3 {[%clk 00:05:48]} {[%emt 00:00:31]} Nh3 {[%clk 00:05:18]} {[%emt 00:00:16]}
21. Nh4 {[%clk 00:05:37]} {[%emt 00:00:16]} Ne7 {[%clk 00:04:49]} {[%emt
00:00:35]} 22. f4 {[%clk 00:04:22]} {[%emt 00:01:19]} f5 {[%clk 00:04:11]}
{[%emt 00:00:43]} 23. Nd2 {[%clk 00:03:58]} {[%emt 00:00:29]} Nf2 {[%clk
00:03:30]} {[%emt 00:00:46]} 24. fxe5 {[%clk 00:02:58]} {[%emt 00:01:06]} Nxh1
{[%clk 00:03:00]} {[%emt 00:00:34]} 25. Rxh1 {[%clk 00:02:54]} {[%emt
00:00:09]} Be3 {[%clk 00:02:30]} {[%emt 00:00:35]} 26. Nhf3 {[%clk 00:02:38]}
{[%emt 00:00:21]} c5 {[%clk 00:02:21]} {[%emt 00:00:15]} 27. Re1 {[%clk
00:02:36]} {[%emt 00:00:06]} Qh6 {[%clk 00:01:58]} {[%emt 00:00:28]} 28. Kb1
{[%clk 00:02:28]} {[%emt 00:00:13]} Rf8 {[%clk 00:01:36]} {[%emt 00:00:26]} 29.
Nc4 {[%clk 00:02:25]} {[%emt 00:00:09]} Rad8 {[%clk 00:00:59]} {[%emt
00:00:43]} 30. Rxe3 {[%clk 00:02:02]} {[%emt 00:00:27]} Nd5 {[%clk 00:00:48]}
{[%emt 00:00:16]} 31. Re1 {[%clk 00:02:06]} {[%emt 00:00:01]} Rf7 {[%clk
00:00:11]} {[%emt 00:00:41]} 32. Nd6 {[%clk 00:01:59]} {[%emt 00:00:13]} Re7
{[%clk 00:00:11]} {[%emt 00:00:05]} 33. Nxf5 {[%clk 00:01:59]} {[%emt
00:00:05]} Qe6 {[%clk 00:00:12]} {[%emt 00:00:04]} 34. Nxe7+ {[%clk 00:02:00]}
{[%emt 00:00:04]} Nxe7 {[%clk 00:00:15]} {[%emt 00:00:02]} 35. Re4 {[%clk
00:01:49]} {[%emt 00:00:16]} Kf8 {[%clk 00:00:12]} {[%emt 00:00:08]} 36. Qf2
{[%clk 00:01:33]} {[%emt 00:00:20]} Ke8 {[%clk 00:00:15]} {[%emt 00:00:02]} 37.
Qxc5 {[%clk 00:01:06]} {[%emt 00:00:33]} Rxd3 {[%clk 00:00:07]} {[%emt
00:00:13]} 38. Qb5+ {[%clk 00:01:10]} {[%emt 00:00:01]} Rd7 {[%clk 00:00:11]}
{[%emt 00:00:01]} 39. Rd4 {[%clk 00:00:54]} {[%emt 00:00:21]} Nc6 {[%clk
00:00:09]} {[%emt 00:00:07]} 40. Rxd7 {[%clk 00:00:53]} {[%emt 00:00:06]} Qxd7
{[%clk 00:00:11]} {[%emt 00:00:03]} 41. Nd4 {[%clk 00:00:35]} {[%emt 00:00:23]}
Qh7+ {[%clk 00:00:11]} {[%emt 00:00:04]} 42. Ka1 {[%clk 00:00:39]} {[%emt
00:00:01]} Qxh2 {[%clk 00:00:12]} {[%emt 00:00:04]} 43. Nxc6 {[%clk 00:00:41]}
{[%emt 00:00:03]} Qh1+ {[%clk 00:00:14]} {[%emt 00:00:03]} 44. Ka2 {[%clk
00:00:44]} {[%emt 00:00:02]} bxc6 {[%clk 00:00:15]} {[%emt 00:00:04]} 45. Qxa5
{[%clk 00:00:41]} {[%emt 00:00:08]} Qe4 {[%clk 00:00:06]} {[%emt 00:00:14]} 46.
Ka3 {[%clk 00:00:22]} {[%emt 00:00:25]} Kd7 {[%clk 00:00:06]} {[%emt 00:00:05]}
47. Qb4 {[%clk 00:00:24]} {[%emt 00:00:02]} Qd5 {[%clk 00:00:08]} {[%emt
00:00:03]} 48. Qd4 {[%clk 00:00:28]} {[%emt 00:00:01]} Ke6 {[%clk 00:00:10]}
{[%emt 00:00:02]} 49. Qxd5+ {[%clk 00:00:32]} {[%emt 00:00:02]} 1-0

[Event "The Kvibergspelen 2024"]
[Site "Kviberg Park Hotel & Conference, Krutvagen 2, Gothenburg, Sweden"]
[Date "2024.09.06"]
[Round "3.12"]
[White "Ernst, Thomas"]
[Black "Olsson, Stefan"]
[Result "1-0"]
[TimeControl "15 minutes + 5 seconds per move from move one (Round 1 - 4) / 90 minutes + 30 seconds per move from move one (Round 5 - 8)"]
[WhiteTitle "GM"]
[WhiteFideId "1700065"]
[BlackFideId "1737325"]
[WhiteElo "2261"]
[BlackElo "1896"]

1. d4 {[%clk 00:15:08]} {[%emt 00:00:02]} Nf6 {[%clk 00:15:07]} {[%emt
00:00:03]} 2. c4 {[%clk 00:15:11]} {[%emt 00:00:01]} c5 {[%clk 00:15:08]}
{[%emt 00:00:05]} 3. d5 {[%clk 00:15:14]} {[%emt 00:00:02]} b5 {[%clk
00:15:12]} {[%emt 00:00:02]} 4. cxb5 {[%clk 00:15:11]} {[%emt 00:00:07]} a6
{[%clk 00:15:15]} {[%emt 00:00:02]} 5. bxa6 {[%clk 00:15:10]} {[%emt 00:00:07]}
g6 {[%clk 00:15:16]} {[%emt 00:00:03]} 6. Nc3 {[%clk 00:15:11]} {[%emt
00:00:04]} Bg7 {[%clk 00:15:19]} {[%emt 00:00:02]} 7. e4 {[%clk 00:15:05]}
{[%emt 00:00:12]} O-O {[%clk 00:15:21]} {[%emt 00:00:02]} 8. f4 {[%clk
00:14:59]} {[%emt 00:00:11]} d6 {[%clk 00:12:39]} {[%emt 00:02:47]} 9. Nf3
{[%clk 00:14:53]} {[%emt 00:00:09]} Bxa6 {[%clk 00:11:46]} {[%emt 00:01:00]} 10.
Bxa6 {[%clk 00:14:52]} {[%emt 00:00:07]} Nxa6 {[%clk 00:11:47]} {[%emt
00:00:03]} 11. O-O {[%clk 00:14:45]} {[%emt 00:00:11]} Nd7 {[%clk 00:10:39]}
{[%emt 00:01:14]} 12. Qe2 {[%clk 00:13:58]} {[%emt 00:00:52]} Qb8 {[%clk
00:08:15]} {[%emt 00:02:30]} 13. Be3 {[%clk 00:11:51]} {[%emt 00:02:10]} Rc8
{[%clk 00:08:08]} {[%emt 00:00:12]} 14. Bf2 {[%clk 00:11:31]} {[%emt 00:00:25]}
e6 {[%clk 00:05:45]} {[%emt 00:02:29]} 15. dxe6 {[%clk 00:10:50]} {[%emt
00:00:46]} fxe6 {[%clk 00:05:47]} {[%emt 00:00:02]} 16. Rfd1 {[%clk 00:10:36]}
{[%emt 00:00:19]} Nb4 {[%clk 00:05:24]} {[%emt 00:00:30]} 17. Bg3 {[%clk
00:06:46]} {[%emt 00:03:54]} Nc6 {[%clk 00:03:37]} {[%emt 00:01:52]} 18. Nb5
{[%clk 00:06:35]} {[%emt 00:00:15]} Nd4 {[%clk 00:02:57]} {[%emt 00:00:46]} 19.
Nbxd4 {[%clk 00:06:31]} {[%emt 00:00:09]} cxd4 {[%clk 00:02:56]} {[%emt
00:00:06]} 20. Nxd4 {[%clk 00:06:30]} {[%emt 00:00:05]} Qb4 {[%clk 00:02:14]}
{[%emt 00:00:49]} 21. Bf2 {[%clk 00:06:07]} {[%emt 00:00:27]} e5 {[%clk
00:00:32]} {[%emt 00:01:48]} 22. fxe5 {[%clk 00:05:17]} {[%emt 00:00:55]} Bxe5
{[%clk 00:00:30]} {[%emt 00:00:06]} 23. b3 {[%clk 00:04:29]} {[%emt 00:00:52]}
Nf6 {[%clk 00:00:24]} {[%emt 00:00:13]} 24. Rab1 {[%clk 00:03:52]} {[%emt
00:00:40]} Re8 {[%clk 00:00:18]} {[%emt 00:00:12]} 25. Kh1 {[%clk 00:03:28]}
{[%emt 00:00:29]} Qb7 {[%clk 00:00:09]} {[%emt 00:00:14]} 26. Re1 {[%clk
00:03:10]} {[%emt 00:00:23]} 1-0

[Event "The Kvibergspelen 2024"]
[Site "Kviberg Park Hotel & Conference, Krutvagen 2, Gothenburg, Sweden"]
[Date "2024.09.06"]
[Round "3.13"]
[White "Kashwan, Hassan"]
[Black "Andersson, Robert"]
[Result "0-1"]
[TimeControl "15 minutes + 5 seconds per move from move one (Round 1 - 4) / 90 minutes + 30 seconds per move from move one (Round 5 - 8)"]
[WhiteFideId "137122555"]
[BlackFideId "1703226"]
[WhiteElo "1936"]
[BlackElo "2098"]

1. d4 {[%clk 00:12:05]} {[%emt 00:03:04]} Nf6 {[%clk 00:15:02]} {[%emt
00:00:09]} 2. Nf3 {[%clk 00:12:06]} {[%emt 00:00:05]} g6 {[%clk 00:14:39]}
{[%emt 00:00:27]} 3. e3 {[%clk 00:11:39]} {[%emt 00:00:31]} Bg7 {[%clk
00:14:40]} {[%emt 00:00:04]} 4. Nbd2 {[%clk 00:11:35]} {[%emt 00:00:11]} O-O
{[%clk 00:14:17]} {[%emt 00:00:27]} 5. Bc4 {[%clk 00:11:18]} {[%emt 00:00:21]}
d5 {[%clk 00:14:11]} {[%emt 00:00:13]} 6. Bd3 {[%clk 00:11:05]} {[%emt
00:00:16]} c5 {[%clk 00:14:07]} {[%emt 00:00:09]} 7. c3 {[%clk 00:10:55]}
{[%emt 00:00:16]} cxd4 {[%clk 00:13:25]} {[%emt 00:00:48]} 8. exd4 {[%clk
00:10:40]} {[%emt 00:00:19]} Nc6 {[%clk 00:13:22]} {[%emt 00:00:08]} 9. O-O
{[%clk 00:10:33]} {[%emt 00:00:12]} Bg4 {[%clk 00:13:00]} {[%emt 00:00:26]} 10.
h3 {[%clk 00:10:34]} {[%emt 00:00:05]} Bxf3 {[%clk 00:12:58]} {[%emt 00:00:07]}
11. Nxf3 {[%clk 00:10:34]} {[%emt 00:00:05]} e6 {[%clk 00:12:26]} {[%emt
00:00:37]} 12. Re1 {[%clk 00:10:23]} {[%emt 00:00:16]} Nd7 {[%clk 00:11:54]}
{[%emt 00:00:37]} 13. Bf4 {[%clk 00:09:31]} {[%emt 00:00:56]} Re8 {[%clk
00:11:43]} {[%emt 00:00:17]} 14. a4 {[%clk 00:09:08]} {[%emt 00:00:28]} a6
{[%clk 00:11:24]} {[%emt 00:00:25]} 15. Qb3 {[%clk 00:08:42]} {[%emt 00:00:30]}
Qb6 {[%clk 00:11:16]} {[%emt 00:00:10]} 16. Qa2 {[%clk 00:08:16]} {[%emt
00:00:34]} Rac8 {[%clk 00:10:07]} {[%emt 00:01:14]} 17. Re2 {[%clk 00:07:02]}
{[%emt 00:01:18]} Na5 {[%clk 00:09:45]} {[%emt 00:00:27]} 18. Rae1 {[%clk
00:06:50]} {[%emt 00:00:18]} Qb3 {[%clk 00:09:26]} {[%emt 00:00:23]} 19. Qa1
{[%clk 00:06:31]} {[%emt 00:00:25]} Nc4 {[%clk 00:09:19]} {[%emt 00:00:11]} 20.
Bxc4 {[%clk 00:05:55]} {[%emt 00:00:42]} Qxc4 {[%clk 00:09:11]} {[%emt
00:00:13]} 21. Nd2 {[%clk 00:05:48]} {[%emt 00:00:11]} Qc6 {[%clk 00:09:03]}
{[%emt 00:00:13]} 22. Nb3 {[%clk 00:05:32]} {[%emt 00:00:21]} b5 {[%clk
00:08:24]} {[%emt 00:00:45]} 23. axb5 {[%clk 00:05:14]} {[%emt 00:00:23]} axb5
{[%clk 00:08:14]} {[%emt 00:00:14]} 24. Qd1 {[%clk 00:04:59]} {[%emt 00:00:21]}
Bf8 {[%clk 00:07:44]} {[%emt 00:00:35]} 25. Nc1 {[%clk 00:04:36]} {[%emt
00:00:28]} b4 {[%clk 00:07:37]} {[%emt 00:00:13]} 26. Re3 {[%clk 00:04:31]}
{[%emt 00:00:09]} bxc3 {[%clk 00:07:37]} {[%emt 00:00:05]} 27. bxc3 {[%clk
00:04:34]} {[%emt 00:00:01]} Ra8 {[%clk 00:06:29]} {[%emt 00:01:13]} 28. Ne2
{[%clk 00:03:52]} {[%emt 00:00:47]} Ra3 {[%clk 00:06:12]} {[%emt 00:00:19]} 29.
h4 {[%clk 00:03:43]} {[%emt 00:00:17]} Nf6 {[%clk 00:05:59]} {[%emt 00:00:17]}
30. Rf3 {[%clk 00:03:00]} {[%emt 00:00:50]} Ne4 {[%clk 00:05:51]} {[%emt
00:00:12]} 31. Qc1 {[%clk 00:02:32]} {[%emt 00:00:34]} Rc8 {[%clk 00:05:35]}
{[%emt 00:00:21]} 32. Bh6 {[%clk 00:02:31]} {[%emt 00:00:06]} Nxc3 {[%clk
00:05:20]} {[%emt 00:00:19]} 33. Qg5 {[%clk 00:02:07]} {[%emt 00:00:30]} Nxe2+
{[%clk 00:05:19]} {[%emt 00:00:06]} 34. Rxe2 {[%clk 00:02:11]} {[%emt
00:00:01]} Rxf3 {[%clk 00:05:11]} {[%emt 00:00:13]} 35. gxf3 {[%clk 00:02:15]}
{[%emt 00:00:01]} Bxh6 36. Qxh6 Qc1+ {[%clk 00:05:16]} {[%emt 00:00:01]} 37.
Qxc1 {[%clk 00:02:22]} Rxc1+ {[%clk 00:05:19]} {[%emt 00:00:03]} 38. Kg2 {[%clk
00:02:26]} {[%emt 00:00:01]} Rd1 {[%clk 00:05:18]} {[%emt 00:00:06]} 39. h5
{[%clk 00:02:24]} {[%emt 00:00:07]} Rxd4 {[%clk 00:05:00]} {[%emt 00:00:24]} 40.
Kg3 {[%clk 00:02:24]} {[%emt 00:00:04]} Kg7 {[%clk 00:04:49]} {[%emt 00:00:16]}
41. f4 {[%clk 00:02:24]} {[%emt 00:00:05]} Kh6 {[%clk 00:04:28]} {[%emt
00:00:25]} 42. f3 {[%clk 00:02:21]} {[%emt 00:00:08]} g5 {[%clk 00:03:17]}
{[%emt 00:01:17]} 43. fxg5+ {[%emt 00:00:13]} Kxg5 {[%clk 00:03:18]} {[%emt
00:00:02]} 44. Re5+ {[%clk 00:02:17]} {[%emt 00:00:03]} Kf6 {[%clk 00:03:15]}
{[%emt 00:00:09]} 45. f4 {[%clk 00:02:14]} {[%emt 00:00:07]} h6 {[%clk
00:02:58]} {[%emt 00:00:22]} 46. Kf3 {[%clk 00:02:09]} {[%emt 00:00:10]} Re4
{[%clk 00:02:46]} {[%emt 00:00:17]} 47. Rxe4 {[%clk 00:02:05]} {[%emt
00:00:09]} dxe4+ {[%clk 00:02:49]} {[%emt 00:00:02]} 48. Kxe4 {[%clk 00:02:09]}
{[%emt 00:00:01]} Ke7 {[%clk 00:02:53]} 49. f5 {[%clk 00:02:10]} {[%emt
00:00:04]} Kf6 {[%clk 00:02:51]} {[%emt 00:00:07]} 50. fxe6 {[%clk 00:01:46]}
{[%emt 00:00:29]} Kxe6 {[%clk 00:02:54]} {[%emt 00:00:03]} 51. Kf4 {[%clk
00:01:46]} {[%emt 00:00:03]} Kf6 {[%clk 00:02:58]} {[%emt 00:00:03]} 52. Kg4
{[%clk 00:01:42]} {[%emt 00:00:08]} Ke5 {[%clk 00:03:01]} {[%emt 00:00:01]} 53.
Kh4 {[%clk 00:01:34]} {[%emt 00:00:14]} Kf4 {[%clk 00:03:04]} {[%emt 00:00:02]}
0-1

[Event "The Kvibergspelen 2024"]
[Site "Kviberg Park Hotel & Conference, Krutvagen 2, Gothenburg, Sweden"]
[Date "2024.09.06"]
[Round "3.14"]
[White "Torres, Lucas"]
[Black "Schriever-Abeln, Marius"]
[Result "0-1"]
[TimeControl "15 minutes + 5 seconds per move from move one (Round 1 - 4) / 90 minutes + 30 seconds per move from move one (Round 5 - 8)"]
[WhiteFideId "1769464"]
[BlackFideId "1752650"]
[WhiteElo "1915"]
[BlackElo "2069"]

1. e4 {[%clk 00:15:07]} {[%emt 00:00:03]} c5 {[%clk 00:15:08]} {[%emt
00:00:03]} 2. Nc3 {[%clk 00:15:11]} {[%emt 00:00:02]} e6 {[%clk 00:15:10]}
{[%emt 00:00:02]} 3. Be2 {[%clk 00:15:08]} {[%emt 00:00:07]} Nc6 {[%clk
00:14:50]} {[%emt 00:00:25]} 4. d3 {[%clk 00:15:09]} {[%emt 00:00:04]} Nf6
{[%clk 00:14:50]} {[%emt 00:00:06]} 5. f4 {[%clk 00:15:04]} {[%emt 00:00:08]}
d5 {[%clk 00:14:22]} {[%emt 00:00:34]} 6. Nf3 {[%clk 00:15:00]} {[%emt
00:00:09]} d4 {[%clk 00:13:52]} {[%emt 00:00:36]} 7. Nb1 {[%clk 00:14:34]}
{[%emt 00:00:31]} Be7 {[%clk 00:13:25]} {[%emt 00:00:32]} 8. O-O {[%clk
00:14:29]} {[%emt 00:00:09]} O-O {[%clk 00:13:22]} {[%emt 00:00:08]} 9. h3
{[%clk 00:14:06]} {[%emt 00:00:29]} a6 {[%clk 00:12:35]} {[%emt 00:00:52]} 10.
a4 {[%clk 00:14:03]} {[%emt 00:00:07]} Rb8 {[%clk 00:12:31]} {[%emt 00:00:09]}
11. Nbd2 {[%clk 00:12:53]} {[%emt 00:01:14]} b5 {[%clk 00:12:14]} {[%emt
00:00:24]} 12. axb5 {[%clk 00:12:45]} {[%emt 00:00:13]} axb5 {[%clk 00:12:18]}
{[%emt 00:00:01]} 13. b3 {[%clk 00:12:16]} {[%emt 00:00:34]} Bb7 {[%clk
00:11:48]} {[%emt 00:00:35]} 14. g4 {[%clk 00:11:58]} {[%emt 00:00:23]} Ra8
{[%clk 00:11:12]} {[%emt 00:00:41]} 15. Rxa8 {[%clk 00:11:28]} {[%emt
00:00:34]} Qxa8 {[%clk 00:11:02]} {[%emt 00:00:15]} 16. g5 {[%clk 00:09:56]}
{[%emt 00:01:37]} Nd7 {[%clk 00:10:37]} {[%emt 00:00:30]} 17. Rf2 {[%clk
00:08:51]} {[%emt 00:01:09]} Nb4 {[%clk 00:09:46]} {[%emt 00:00:57]} 18. Nf1
{[%clk 00:06:09]} {[%emt 00:02:47]} Qa2 {[%clk 00:06:39]} {[%emt 00:03:13]} 19.
Ne1 {[%clk 00:05:49]} {[%emt 00:00:24]} Rd8 {[%clk 00:05:44]} {[%emt 00:01:01]}
20. Ng3 {[%clk 00:05:17]} {[%emt 00:00:36]} Nb6 {[%clk 00:04:03]} {[%emt
00:01:46]} 21. Bf1 {[%clk 00:04:39]} {[%emt 00:00:43]} Qb1 {[%clk 00:03:36]}
{[%emt 00:00:33]} 22. Rd2 {[%clk 00:02:48]} {[%emt 00:01:53]} Ra8 {[%clk
00:03:03]} {[%emt 00:00:41]} 23. Ne2 {[%clk 00:01:28]} {[%emt 00:01:23]} Ra1
{[%clk 00:02:16]} {[%emt 00:00:54]} 24. Nf3 {[%clk 00:00:16]} {[%emt 00:01:17]}
Na2 {[%clk 00:01:45]} {[%emt 00:00:36]} 25. Qe1 {[%clk 00:00:09]} {[%emt
00:00:11]} Nxc1 {[%clk 00:01:33]} {[%emt 00:00:18]} 26. Rd1 {[%clk 00:00:12]}
{[%emt 00:00:02]} Qxc2 {[%clk 00:01:05]} {[%emt 00:00:33]} 27. Rxc1 {[%clk
00:00:08]} {[%emt 00:00:08]} Rxc1 {[%clk 00:01:01]} {[%emt 00:00:09]} 28. Nxc1
{[%clk 00:00:10]} {[%emt 00:00:03]} c4 {[%clk 00:00:24]} {[%emt 00:00:43]} 29.
bxc4 {[%clk 00:00:12]} {[%emt 00:00:03]} bxc4 {[%clk 00:00:27]} {[%emt
00:00:03]} 30. Kh1 {[%clk 00:00:07]} {[%emt 00:00:09]} Bc5 {[%clk 00:00:20]}
{[%emt 00:00:12]} 31. f5 {[%clk 00:00:06]} {[%emt 00:00:07]} c3 {[%clk
00:00:16]} {[%emt 00:00:08]} 32. fxe6 {[%clk 00:00:09]} {[%emt 00:00:03]} fxe6
{[%clk 00:00:20]} 33. Ne5 {[%clk 00:00:06]} {[%emt 00:00:09]} Qd2 {[%clk
00:00:18]} {[%emt 00:00:06]} 0-1

[Event "The Kvibergspelen 2024"]
[Site "Kviberg Park Hotel & Conference, Krutvagen 2, Gothenburg, Sweden"]
[Date "2024.09.06"]
[Round "3.15"]
[White "Johansson, William"]
[Black "Frank, Anton"]
[Result "1/2-1/2"]
[TimeControl "15 minutes + 5 seconds per move from move one (Round 1 - 4) / 90 minutes + 30 seconds per move from move one (Round 5 - 8)"]
[WhiteFideId "1744070"]
[BlackFideId "1752383"]
[WhiteElo "1899"]
[BlackElo "2142"]

1. b3 {[%clk 00:15:09]} e5 {[%clk 00:15:02]} {[%emt 00:00:08]} 2. Bb2 {[%clk
00:15:13]} {[%emt 00:00:01]} Nc6 {[%clk 00:15:06]} {[%emt 00:00:01]} 3. c4
{[%clk 00:15:16]} {[%emt 00:00:02]} Nf6 {[%clk 00:14:59]} {[%emt 00:00:12]} 4.
e3 {[%clk 00:15:19]} {[%emt 00:00:03]} e4 {[%clk 00:14:47]} {[%emt 00:00:16]} 5.
a3 {[%clk 00:14:19]} {[%emt 00:01:05]} a5 {[%clk 00:14:39]} {[%emt 00:00:13]} 6.
d4 {[%clk 00:14:11]} {[%emt 00:00:13]} exd3 {[%clk 00:14:42]} 7. Bxd3 {[%clk
00:14:15]} {[%emt 00:00:02]} d5 {[%clk 00:14:27]} {[%emt 00:00:21]} 8. Nf3
{[%clk 00:12:11]} {[%emt 00:02:08]} dxc4 {[%clk 00:14:18]} {[%emt 00:00:13]} 9.
Bxc4 {[%clk 00:11:03]} {[%emt 00:01:14]} Qxd1+ {[%clk 00:14:21]} {[%emt
00:00:02]} 10. Kxd1 {[%clk 00:11:07]} {[%emt 00:00:01]} Be7 {[%clk 00:14:22]}
{[%emt 00:00:05]} 11. Ke2 {[%clk 00:10:59]} {[%emt 00:00:13]} O-O {[%clk
00:14:05]} {[%emt 00:00:21]} 12. Nc3 {[%clk 00:10:56]} {[%emt 00:00:08]} Bf5
{[%clk 00:13:37]} {[%emt 00:00:33]} 13. Nb5 {[%clk 00:10:43]} {[%emt 00:00:19]}
Rac8 {[%clk 00:13:07]} {[%emt 00:00:34]} 14. Rhd1 {[%clk 00:10:26]} {[%emt
00:00:22]} h6 {[%clk 00:12:22]} {[%emt 00:00:50]} 15. h3 {[%clk 00:10:07]}
{[%emt 00:00:25]} Ne4 {[%clk 00:12:09]} {[%emt 00:00:18]} 16. g4 {[%clk
00:09:55]} {[%emt 00:00:16]} Bg6 {[%clk 00:11:53]} {[%emt 00:00:21]} 17. Rd7
{[%clk 00:09:10]} {[%emt 00:00:49]} Bd6 {[%clk 00:11:06]} {[%emt 00:00:53]} 18.
Nxd6 {[%clk 00:09:12]} {[%emt 00:00:03]} Nxd6 {[%clk 00:11:06]} {[%emt
00:00:05]} 19. Ne5 {[%clk 00:08:38]} {[%emt 00:00:39]} Be4 {[%clk 00:08:56]}
{[%emt 00:02:15]} 20. f3 {[%clk 00:07:19]} {[%emt 00:01:24]} Nxe5 {[%clk
00:05:46]} {[%emt 00:03:14]} 21. Bxe5 {[%clk 00:07:21]} {[%emt 00:00:04]} Bc6
{[%clk 00:05:47]} {[%emt 00:00:04]} 22. Bxd6 {[%clk 00:06:37]} {[%emt
00:00:48]} Bxd7 {[%clk 00:05:34]} {[%emt 00:00:19]} 23. Bxf8 {[%clk 00:06:40]}
{[%emt 00:00:02]} Kxf8 {[%clk 00:05:35]} {[%emt 00:00:04]} 24. Rd1 {[%clk
00:06:42]} {[%emt 00:00:02]} Bc6 {[%clk 00:05:35]} {[%emt 00:00:05]} 25. a4
{[%clk 00:05:55]} {[%emt 00:00:52]} b6 {[%clk 00:05:18]} {[%emt 00:00:23]} 26.
e4 {[%clk 00:05:32]} {[%emt 00:00:28]} Ke7 {[%clk 00:05:17]} {[%emt 00:00:06]}
27. Ke3 {[%clk 00:05:12]} {[%emt 00:00:26]} f6 {[%clk 00:04:21]} {[%emt
00:01:01]} 28. h4 {[%clk 00:05:10]} {[%emt 00:00:06]} Rd8 {[%clk 00:04:08]}
{[%emt 00:00:18]} 29. Rxd8 {[%clk 00:04:23]} {[%emt 00:00:52]} Kxd8 {[%clk
00:04:12]} {[%emt 00:00:01]} 30. Kd4 {[%clk 00:02:37]} {[%emt 00:01:51]} Ke7
{[%clk 00:03:58]} {[%emt 00:00:19]} 31. Bd5 {[%clk 00:02:39]} {[%emt 00:00:02]}
Bd7 {[%clk 00:03:46]} {[%emt 00:00:18]} 32. e5 {[%clk 00:02:02]} {[%emt
00:00:42]} fxe5+ {[%clk 00:03:01]} {[%emt 00:00:50]} 33. Kxe5 {[%clk 00:02:06]}
{[%emt 00:00:01]} c6 {[%clk 00:02:42]} {[%emt 00:00:24]} 34. Bg8 {[%clk
00:01:05]} {[%emt 00:01:06]} b5 {[%clk 00:02:33]} {[%emt 00:00:14]} 35. g5
{[%clk 00:01:06]} {[%emt 00:00:05]} hxg5 {[%clk 00:02:33]} {[%emt 00:00:05]} 36.
hxg5 {[%clk 00:01:10]} {[%emt 00:00:01]} g6 {[%clk 00:01:41]} {[%emt 00:00:57]}
37. axb5 {[%clk 00:00:32]} {[%emt 00:00:42]} cxb5 {[%clk 00:01:42]} {[%emt
00:00:04]} 38. Kd4 {[%clk 00:00:07]} {[%emt 00:00:31]} Kd6 {[%clk 00:01:37]}
{[%emt 00:00:09]} 39. Bf7 {[%clk 00:00:09]} {[%emt 00:00:02]} Be6 {[%clk
00:00:38]} {[%emt 00:01:05]} 40. Be8 {[%clk 00:00:11]} {[%emt 00:00:04]} b4
{[%clk 00:00:25]} {[%emt 00:00:18]} 41. Ba4 {[%clk 00:00:12]} {[%emt 00:00:03]}
Bd5 {[%clk 00:00:24]} {[%emt 00:00:06]} 42. f4 {[%clk 00:00:16]} {[%emt
00:00:01]} Be6 {[%clk 00:00:21]} {[%emt 00:00:08]} 43. Ke4 {[%clk 00:00:18]}
{[%emt 00:00:01]} Bf5+ {[%clk 00:00:24]} {[%emt 00:00:03]} 44. Kd4 {[%clk
00:00:22]} {[%emt 00:00:02]} Bc2 {[%clk 00:00:24]} {[%emt 00:00:04]} 45. Kc4
{[%clk 00:00:22]} {[%emt 00:00:05]} Ke6 {[%clk 00:00:21]} {[%emt 00:00:08]} 46.
Kb5 {[%clk 00:00:19]} {[%emt 00:00:08]} Kf5 {[%clk 00:00:24]} {[%emt 00:00:02]}
47. Kxa5 {[%clk 00:00:22]} {[%emt 00:00:02]} Kxf4 {[%clk 00:00:27]} {[%emt
00:00:01]} 48. Kxb4 {[%clk 00:00:23]} {[%emt 00:00:05]} Kxg5 {[%clk 00:00:31]}
{[%emt 00:00:01]} 49. Be8 {[%clk 00:00:25]} {[%emt 00:00:02]} Kf6 {[%clk
00:00:33]} {[%emt 00:00:04]} 50. Bxg6 {[%clk 00:00:28]} {[%emt 00:00:03]} Bxb3
{[%clk 00:00:36]} {[%emt 00:00:01]} 1/2-1/2